Cogmind - Beta 15 @@@ ROGUE MODE // 2025.06.20 @ 13:55:58 Player: Pancakes Result: Self-destructed Performance ------------- Evolutions (2) 1000 Regions Visited (4) 800 Robots Destroyed (72) 360 Value Destroyed (1695) 1695 Prototype IDs (2) 40 Alien Tech Used (0) 0 Bonus (0) 0 TOTAL SCORE: 3895 Bonus ------- None Cogmind --------- Core Integrity 496/550 Matter 254/300 Energy 160/160 System Corruption 0% Temperature Cool (0) Movement Walking (120) Location -8/Materials Parts ------- > --- POWER (1) -------- Light Nuclear Core > --- PROPULSION (3) --- Aluminum Leg Aluminum Leg Improved Aluminum Leg > --- UTILITY (5) ------ Large Storage Unit Improved Sensor Array Improved Signal Interpreter Hacking Suite Hacking Suite > --- WEAPON (2) ------- Heavy Assault Rifle Rocket Launcher > --- INVENTORY (15) --- Light Ion Engine Improved Ion Engine VSS Leg Wheel Targeting Computer Hardened Light Armor Plating Hacking Suite Hacking Suite Recalibrator Assault Rifle Heavy Assault Rifle Heavy Assault Rifle Grenade Launcher Datajack Katana Peak State ------------ > --- POWER ------------ Light Nuclear Core > --- PROPULSION ------- Aluminum Leg Aluminum Leg Improved Aluminum Leg > --- UTILITY ---------- Large Storage Unit Improved Sensor Array Improved Signal Interpreter Hacking Suite Hacking Suite > --- WEAPON ----------- Heavy Assault Rifle Rocket Launcher > --- INVENTORY -------- Light Ion Engine Improved Ion Engine VSS Leg Wheel Targeting Computer Hardened Light Armor Plating Hacking Suite Hacking Suite Recalibrator Assault Rifle Heavy Assault Rifle Heavy Assault Rifle Grenade Launcher Datajack Katana [Rating: 27] Favorites ----------- Power Light Ion Engine Engine Light Ion Engine Power Core Light Nuclear Core Propulsion Aluminum Leg Leg Aluminum Leg Wheel Wheel Utility Large Storage Unit Device Improved Sensor Array Storage Large Storage Unit Processor Improved Signal Interpreter Hackware Hacking Suite Protection Hardened Light Armor Plating Weapon Heavy Assault Rifle Ballistic Gun Heavy Assault Rifle Launcher Rocket Launcher Special Weapon Mining Laser Slashing Weapon Katana Special Melee Weapon Datajack Build | -11 -10 -9 -9 -8 ------- Run | Yrd Mat Mat Sto Mat Slots Evolved 4 | . . 2 . 2 Power . | . . . . . Propulsion 1 | . . 1 . . Utility 3 | . . 1 . 2 Weapon . | . . . . . Parts Attached 46 | 6 9 18 8 5 Power 6 | 1 2 2 . 1 Engine 5 | 1 2 2 . . Core 1 | . . . . 1 Reactor . | . . . . . Propulsion 14 | 1 3 8 2 . Treads . | . . . . . Leg 13 | 1 2 8 2 . Wheel 1 | . 1 . . . Hover . | . . . . . Flight . | . . . . . Utility 12 | 2 2 3 3 2 Device 3 | 1 . 2 . . Storage 2 | 1 1 . . . Processor 3 | . . 1 2 . Hackware 3 | . 1 . . 2 Protection 1 | . . . 1 . Artifact . | . . . . . Weapon 14 | 2 2 5 3 2 Energy Gun . | . . . . . Energy Cannon . | . . . . . Ballistic Gun 8 | 2 1 3 1 1 Ballistic Cannon . | . . . . . Launcher 2 | . 1 1 . . Special Weapon 1 | . . . 1 . Impact Weapon . | . . . . . Slashing Weapon 2 | . . 1 . 1 Piercing Weapon . | . . . . . Special Melee Weapon 1 | . . . 1 . Unidentified Prototypes . | . . . . . Parts Lost 8 | . 2 4 2 . Power 2 | . 1 . 1 . Propulsion 2 | . . 2 . . Utility 1 | . . 1 . . Weapon 3 | . 1 1 1 . Highest Loss Streak 2 | . 1 2 2 . To Critical Strikes 1 | . . 1 . . Average Backups 12 | 3 7 13 14 13 Power . | . 1 1 . 1 Propulsion 1 | 1 1 . 1 1 Utility 5 | . 1 5 7 5 Weapon 4 | 1 2 5 4 5 Tool/Special . | . . . . . Unused Backups 10 | . 1 4 . 5 Power 1 | . . . . 1 Propulsion 1 | . 1 . . . Utility 8 | . . 4 . 4 Weapon . | . . . . . Tool/Special . | . . . . . Average Slot Usage (%) 98 | . 96 99 99 96 Engine 10 | . 13 11 10 1 Core 1 | . . . . 7 Leg 29 | . 24 28 33 26 Wheel 1 | . . 3 . . Device 10 | . 8 10 11 9 Storage 11 | . 14 11 11 9 Processor 8 | . . 8 10 9 Hackware 3 | . 5 2 . 15 Ballistic Gun 21 | . 27 21 21 12 Peak Build Rating 27 | 8 10 19 19 27 Average Rating 16 | 5 8 15 18 24 On Entrance 10 | . 8 9 18 18 Naked Turns . | . . . . . Heaviest Build 33 | 13 26 33 32 33 Greatest Support 36 | 10 20 36 36 33 Greatest Overweight (x) 3 | 1 2 3 . 1 Average Overweight (x) . | . . . . . Largest Inventory Capacity 15 | 8 15 15 15 15 Average Capacity 13 | 7 8 15 15 15 Most Carried 15 | 6 9 15 15 15 Average Carried 12 | 3 7 13 14 13 Final Capacity 15 | 8 15 15 15 15 Final Carried 15 | 5 9 15 13 15 Class Distribution -------------------- 54% | Scavenger-Mutant 36% | Mutant 8% | Hacker-Mutant Dominant Class ---------------- Mutant | -10/Materials Scavenger-Mutant | -9/Materials Mutant | -9/Storage Hacker-Mutant | -8/Materials Resources | -11 -10 -9 -9 -8 ----------- Run | Yrd Mat Mat Sto Mat Matter Collected 2039 | 253 324 676 522 264 Remotely . | . . . . . Salvage Created 2341 | 14 454 934 646 293 Parts 157 | 5 29 64 43 16 Haulers Intercepted 2 | . . . 2 . Recyclers Shooed 7 | . 3 3 1 . Parts Field Recycled . | . . . . . Retrieved Matter . | . . . . . Parts Self-Destructed . | . . . . . Prevented . | . . . . . Kills | -11 -10 -9 -9 -8 ------- Run | Yrd Mat Mat Sto Mat Combat Hostiles Destroyed 52 | . 11 19 13 9 Melee 2 | . . . . 2 Guns 44 | . 9 17 11 7 AOE 6 | . 2 2 2 . Classes Destroyed 13 | 1 7 3 1 1 Worker 3 | . 1 . 2 . Builder 3 | . 1 1 1 . Tunneler 1 | 1 . . . . Hauler 2 | . . . 2 . Recycler 3 | . 1 1 1 . Mechanic 1 | . . . . 1 Operator 1 | . 1 . . . Watcher 6 | . 1 5 . . Swarmer 18 | . 5 3 4 6 Grunt 20 | . 6 8 4 2 Brawler 2 | . . 1 1 . Duelist 1 | . . 1 . . Sentry 11 | . . 6 4 1 Best Kill Streak 7 | 1 4 5 4 7 Combat Bots Only 7 | . 4 4 2 7 Max Kills in Single Turn 3 | 1 3 3 3 1 Gunslinging 1 | . . 1 . . Exploded 2 | . 2 1 1 . Melee 1 | . . . . 1 Uniques/NPCs Destroyed . | . . . . . Combat | -11 -10 -9 -9 -8 -------- Run | Yrd Mat Mat Sto Mat Hostile Shots Fired 238 | . 67 88 54 29 Missed 61 | . 18 21 13 9 Hits 177 | . 49 67 41 20 Melee 3 | . . 3 . . Projectile 174 | . 49 64 41 20 Critical Strikes 6 | . . 4 1 1 Damage Taken 2139 | . 505 892 509 233 Core 453 | . 129 173 97 54 Absorbed by Shields . | . . . . . Regen/Repaired (Parts) 233 | . . 114 . 119 Core Remaining (%) 60 | 100 48 . 32 . Volleys Fired 183 | 1 36 83 49 14 Largest 2 | 2 2 2 2 2 Hottest 123 | 40 40 56 123 43 Shots Fired 340 | 2 68 154 88 28 Gun 324 | 2 67 151 76 28 Cannon . | . . . . . Launcher 12 | . 1 3 8 . Special 4 | . . . 4 . Kinetic 324 | 2 67 151 76 28 Thermal 4 | . . . 4 . Explosive 12 | . 1 3 8 . Electromagnetic . | . . . . . Robot Hit Streak 14 | 1 5 13 14 10 Robot Miss Streak 6 | . 3 6 2 3 Penetration Max . | . . . . . Secondary Targets 2 | . . 2 . . Max Gunslinging Chain 1 | . . 1 . . Shots Hit Robots 239 | 1 38 113 63 24 Core Hits 107 | 1 22 41 33 10 Critical Kills . | . . . . . Critical Parts Destroyed 1 | . . 1 . . Critical Strikes 1 | . . 1 . . Destroy 1 | . . 1 . . Melee Attacks 14 | . . 1 2 11 Impact . | . . . . . Slashing 9 | . . 1 . 8 Piercing . | . . . . . Sneak Attacks 9 | . . 1 2 6 Combat Hostiles 3 | . . . . 3 Follow-up Attacks . | . . . . . Damage Inflicted 4176 | 10 656 1774 1197 539 Guns 3032 | 10 521 1439 849 213 Cannons . | . . . . . Explosions 748 | . 135 289 324 . Melee 372 | . . 46 . 326 Ramming . | . . . . . Kinetic 3032 | 10 521 1439 849 213 Thermal 24 | . . . 24 . Explosive 748 | . 135 289 324 . Electromagnetic . | . . . . . Impact . | . . . . . Slashing 372 | . . 46 . 326 Piercing . | . . . . . Highest Corruption 5 | . . 5 5 . Average Corruption 5 | . . 5 5 . Corruption Purged . | . . . . . Corruption Blocked . | . . . . . Effects 104 | . . 46 58 . Message Errors 27 | . . 14 13 . Matter Fused 20 | . . 8 12 . Heat Flow Errors 13 | . . 3 10 . Energy Discharges 17 | . . 4 13 . Data Loss (minor) 7 | . . 3 4 . Data Loss (major) 10 | . . 6 4 . Misfires 6 | . . 5 1 . Alerts 3 | . . 2 1 . Weapon Failures 1 | . . 1 . . Overload Shots . | . . . . . Overflow Damage 113 | . 7 47 5 54 Projectiles . | . . . . . Explosions 35 | . 7 23 5 . Melee 78 | . . 24 . 54 Knockbacks . | . . . . . Impact . | . . . . . Kinetic . | . . . . . Secondary . | . . . . . Self-Inflicted Damage . | . . . . . Shots . | . . . . . Rammed . | . . . . . Targets Rammed . | . . . . . Kicked . | . . . . . Crushed . | . . . . . Highest Temperature 262 | . 2 202 262 17 Average Temperature 66 | . 1 44 82 12 Received Heat Transfer 753 | . 156 348 168 81 Siege Activations . | . . . . . Martial Activations . | . . . . . Shielding Activations . | . . . . . Robots Disrupted . | . . . . . Combat Hostiles . | . . . . . Robots Corrupted . | . . . . . Combat Hostiles . | . . . . . Parts Fried . | . . . . . Impact Corruptions . | . . . . . Robots Melted . | . . . . . Combat Hostiles . | . . . . . Parts Melted . | . . . . . Heat Transferred 50 | . . . 50 . Parts Sabotaged . | . . . . . Parts Stolen . | . . . . . Parts Stripped . | . . . . . Power Chain Reactions . | . . . . . Alert | -11 -10 -9 -9 -8 ------- Run | Yrd Mat Mat Sto Mat Maximum Alert Level 1 | . . 1 . 1 Low Security (%) 94 | 100 100 89 100 83 Level 1 5 | . . 10 . 16 Level 2 . | . . . . . Level 3 . | . . . . . Level 4 . | . . . . . Level 5 . | . . . . . High Security . | . . . . . Max Security . | . . . . . Peak Influence 241 | 5 91 223 138 241 Initial 81 | . . 9 81 46 Average 70 | . 26 93 53 112 Influence Increases 1814 | 5 328 656 475 350 Destroy 0b10 Robot/C 1040 | . 220 380 260 180 Destroy 0b10 Robot/NC 100 | 5 25 35 30 5 Destroy Leader 256 | . 42 120 64 30 Successful Hack 37 | . 13 24 . . Disable Machine 15 | . . 15 . . Destroy Structure 96 | . 13 22 61 . Lose Combat Pursuer 270 | . 15 60 60 135 Influence Decreases 1792 | 5 304 487 558 438 Entered New Map 191 | . . 15 112 64 Time Decay 1545 | 5 289 442 435 374 Lost Part 56 | . 15 30 11 . Squads Dispatched 7 | . 2 3 1 1 Investigation 2 | . 1 1 . . Extermination . | . . . . . Reinforcement 5 | . 1 2 1 1 Assault . | . . . . . Garrison . | . . . . . Intercept . | . . . . . Searches Triggered . | . . . . . Construction Impeded 2 | . . 1 1 . Haulers Reinforced . | . . . . . Active Scanning Responses . | . . . . . Cargo Convoy Interrupts . | . . . . . Stealth | -11 -10 -9 -9 -8 --------- Run | Yrd Mat Mat Sto Mat Distress Signals 6 | . . 4 1 1 Communications Jammed . | . . . . . Distress Signals . | . . . . . Times Spotted 85 | . 17 36 14 18 Peak Tracking Total 8 | . 3 5 4 8 Tactical Retreats 13 | . 1 2 3 7 Traps | -11 -10 -9 -9 -8 ------- Run | Yrd Mat Mat Sto Mat Traps Triggered 1 | . 1 . . . Indirectly . | . . . . . Trap Hack Attempts . | . . . . . Triggered . | . . . . . Disarmed . | . . . . . Reprogrammed . | . . . . . Reused . | . . . . . Traps Extracted . | . . . . . Installed . | . . . . . Triggered . | . . . . . Machines | -11 -10 -9 -9 -8 ---------- Run | Yrd Mat Mat Sto Mat Machines Disabled 1 | . . 1 . . Max in Single Turn 1 | . . 1 . . Machines Repaired . | . . . . . Machines Dismantled . | . . . . . Machines Sabotaged . | . . . . . Overloaded Fab Kills . | . . . . . Hacking | -11 -10 -9 -9 -8 --------- Run | Yrd Mat Mat Sto Mat Machines Accessed 15 | . 3 7 4 1 Terminals 10 | . 3 4 3 . Fabricators . | . . . . . Repair Stations 3 | . . 1 1 1 Recycling Units . | . . . . . Scanalyzers 2 | . . 2 . . Garrison Access . | . . . . . Total Hacks 54 | . 9 33 8 4 Successful 40 | . 5 27 4 4 Failed 14 | . 4 6 4 . Catastrophic 1 | . . 1 . . Database Lockouts . | . . . . . Manual 2 | . 2 . . . Terminals 23 | . 9 10 4 . Fabricators . | . . . . . Repair Stations 14 | . . 6 4 4 Recycling Units . | . . . . . Scanalyzers 17 | . . 17 . . Garrison Access . | . . . . . Terminal Hacks 13 | . 5 6 2 . Record 1 | . . 1 . . Robot Analysis 1 | . . . 1 . Prototype ID Bank 1 | . 1 . . . Branch Access Points 2 | . 1 1 . . Alert Level 2 | . 1 1 . . Locate Traps 1 | . . . 1 . Dispatch Records 1 | . . 1 . . Surveillance Status 1 | . 1 . . . Investigation Status 1 | . . 1 . . Assault Status 1 | . 1 . . . Recall Investigation 1 | . . 1 . . Fabricator Hacks . | . . . . . Repair Station Hacks 10 | . . 4 2 4 Scan Component 6 | . . 2 2 2 Repair 4 | . . 2 . 2 Recycling Unit Hacks . | . . . . . Scanalyzer 17 | . . 17 . . Insert Component 8 | . . 8 . . Analyze 9 | . . 9 . . Garrison Access Hacks . | . . . . . Unauthorized Hacks . | . . . . . Terminals . | . . . . . Fabricators . | . . . . . Repair Stations . | . . . . . Recycling Units . | . . . . . Scanalyzers . | . . . . . Garrison Access . | . . . . . Data Cores Recovered . | . . . . . Used . | . . . . . Hacking Detections 10 | . 2 5 2 1 Full Trace Events 2 | . . 1 1 . Feedback Events 1 | . . 1 . . Hackware Fried 1 | . . 1 . . Feedback Blocked . | . . . . . Robot Schematics Acquired . | . . . . . Robots Built . | . . . . . Authchips . | . . . . . Time . | . . . . . Total Robot Build Rating . | . . . . . Part Schematics Acquired 8 | . . 8 . . Parts Built . | . . . . . Authchips . | . . . . . Time . | . . . . . Total Part Build Rating . | . . . . . Parts Repaired 4 | . . 2 . 2 Time 134 | . . 70 . 64 Parts Recycled . | . . . . . Recycled Matter . | . . . . . Retrieved Matter . | . . . . . Retrieved Components . | . . . . . Parts Scanalyzed 8 | . . 8 . . Part Schematics Acquired 8 | . . 8 . . Parts Damaged . | . . . . . Bothacking | -11 -10 -9 -9 -8 ------------ Run | Yrd Mat Mat Sto Mat Used RIF Installer . | . . . . . Robots Hacked 3 | . . . 1 2 Non-combat 2 | . . . 1 1 Combat 1 | . . . . 1 Robot Hacks Applied 4 | . . . 1 3 parse_system 1 | . . . . 1 no_distress 2 | . . . 1 1 find_station 1 | . . . . 1 Relay Couplers Released . | . . . . . Fabnet Peak Effective % . | . . . . . Robots Rewired . | . . . . . Allies Hacked . | . . . . . Hacks Repelled . | . . . . . Allies | -11 -10 -9 -9 -8 -------- Run | Yrd Mat Mat Sto Mat Total Allies . | . . . . . Largest Group . | . . . . . Highest-Rated Group . | . . . . . Highest-Rated Ally . | . . . . . Total Orders . | . . . . . Ally Attacks . | . . . . . Total Damage . | . . . . . Kills . | . . . . . Allies Corrupted . | . . . . . Allies Melted . | . . . . . Intel | -11 -10 -9 -9 -8 ------- Run | Yrd Mat Mat Sto Mat Active Infowar (turns) 6096 | 41 654 2308 2226 867 Sensors 5401 | . . 2308 2226 867 Terrain 695 | 41 654 . . . T.N.C. 5 | . . . 5 . Robot Analysis Total 1 | . . . 1 . Derelict Logs Recovered . | . . . . . Drone Launches . | . . . . . Drone Recoveries . | . . . . . Exploration | -11 -10 -9 -9 -8 ------------- Run | Yrd Mat Mat Sto Mat Turns Passed 6601 | 98 1063 2347 2226 867 Spaces Moved 2526 | 48 608 1031 598 241 Core 6 | 6 . . . . Treads . | . . . . . Legs 2119 | 42 546 692 598 241 Wheels 401 | . 62 339 . . Hover . | . . . . . Flight . | . . . . . Fastest Speed 50 | 50 110 110 120 120 Average Speed 121 | 170 125 116 120 121 Slowest Speed 260 | 190 190 260 120 190 Overloaded Moves . | . . . . . Propulsion Burnouts . | . . . . . Robots Hopped . | . . . . . Potential Cave-ins . | . . . . . Cave-ins Triggered . | . . . . . Exploration Rate (%) 36 | 5 60 56 46 17 Regions Visited 4 Branch Regions 1 Pre-discovered Areas . | . . . . . Known Exits Taken 2 | . . 1 1 . Unknown Exits Taken 2 | 1 1 . . . Scrap Searched . | . . . . . Spaces Dug 3 | . . . 3 . Terrain Destroyed 98 | . 13 22 63 . Melee . | . . . . . Projectile 3 | . . . 3 . AOE 95 | . 13 22 60 . Terrain Rammed . | . . . . . Walls Destroyed . | . . . . . Machines Disabled . | . . . . . Actions | -11 -10 -9 -9 -8 --------- Run | Yrd Mat Mat Sto Mat Total 5701 | 60 838 2029 2006 768 Wait 2837 | . 171 853 1330 483 Move 2522 | 47 607 1030 597 241 Hop . | . . . . . Pick Up 45 | 6 8 21 4 6 Fast Attach 9 | 5 2 2 . . Attach 16 | 1 2 6 4 3 Detach . | . . . . . Swap 50 | . 7 18 15 10 Drop 25 | . 5 15 5 . Fire 183 | 1 36 83 49 14 Melee 14 | . . 1 2 11 Ram . | . . . . . Kick . | . . . . . Crush . | . . . . . Escape Stasis . | . . . . . Rewire . | . . . . . Trap . | . . . . . Miscellaneous . | . . . . . Route ------- -11/Scrapyard -10/Materials (discovered 2 exits: *Mat / *Min) -9/Materials (discovered 4 exits: Min x2 / *Sto x2) -9/Storage -8/Materials History --------- Turn | Location | Event 13 | -11/Scrapyard | Discovered new exit (range 16) 99 | -11/Scrapyard | Entered Materials 118 | -10/Materials | Identified exit to Mines 305 | -10/Materials | Build established: Mutant 656 | -10/Materials | Core integrity fell below 50% 959 | -10/Materials | Discovered new exit (range 16) 1162 | -10/Materials | Entered another Materials area 1162 | -9/Materials | Evolved 2 slots: Propulsion x1, Utility x1 1443 | -9/Materials | Identified exit to Mines 1443 | -9/Materials | Identified exit to Storage 1473 | -9/Materials | Build established: Scavenger-Mutant 1626 | -9/Materials | Hacking Suite fried by hacking feedback 2273 | -9/Materials | Repaired Imp. Sensor Array 2370 | -9/Materials | Repaired Hvy. Assault Rifle 3509 | -9/Materials | Entered Storage 4026 | -9/Storage | Core integrity fell below 50% 4322 | -9/Storage | Build established: Mutant 5546 | -9/Storage | Build established: Scavenger-Mutant 5731 | -9/Storage | Discovered new exit (range 5) 5734 | -9/Storage | Identified exit to Materials 5735 | -9/Storage | Entered Materials 5735 | -8/Materials | Evolved 2 slots: Utility x2 5932 | -8/Materials | Destroyed 7 combat bots 5974 | -8/Materials | Repaired Rocket Launcher 6007 | -8/Materials | Repaired Imp. Aluminum Leg 6403 | -8/Materials | Build established: Hacker-Mutant 6602 | -8/Materials | Self-destructed Last Messages --------------- K-01 Serf collects debris. Repair station completes Imp. Aluminum Leg repairs. Acquired Imp. Aluminum Leg. Connecting with Repair Station... Acquired 17 matter. Acquired 23 matter. R-06 Scavenger collects Lgt. Assault Rifle. Sneak attack on G-50 Soldier. Jacked G-50 Soldier... >>parse_system Reading system data... O-16 Technician: "IFF HANDSHAKE FAILED. SECURING TERMINAL." O-16 Technician uses terminal to summon reinforcements. ALERT: Hostiles spotted, dispatching reinforcements to Terminal M010. O-16 Technician locks terminal. Acquired VSS Leg. Map ----- +----------------------------------------------------+ | | | | | | | | | | | | | | | | | | | ###############????????????????? | | [* / #???????????????? | | ** """ """ #???????????????? | | * """ """"" #???????????????? | | """ """"" ########????????? | | """"" # ######???? | | * """ #""" + #???? | | #""" # #???? | | ######+#######+#""" # #???? | | + # #???? | | ##### # !# #???? | | ?????????????# ######## #???? | | ?????????????# #???? | | ?????????????# ###########+####? | | ?????????????# #??????#/ #? | | ?????????????# #??????# !!!#? | | ?????????????# #??????#* @ !!!#? | | ??????????????k???????# !!!#? | | ??????????????????????#########? | | ???????????????????????????????? | | ???????????????????????????????? | | ?????????????Y?????????????????? | | ???????????????????????????????? | | ???????????????????????????????? | | ???????????????????????????????? | | ???????????????????????????????? | | ???????????????????????????????? | | ???????????????????????o???????? | | ???????????????????????????????? | | ???????????????????????????????? | | ???????????????????????????????? | | ???????????????????????????????? | | ???????????????????????????????? | | ???????????????????????????????? | | ???????????????????????????????? | | ???????????????????????????????? | | ???????????????????????????????? | | ???????????????????????????????? | | ???????????????????????????????? | | ???????????????????????????????? | | ???????????????????????????????? | +----------------------------------------------------+ Best States ------------- Heat Dissipation 31 Energy Generation 14 Energy Capacity 250 Matter Stores 300 Matter Capacity 300 Sight Range 16 Robot Scan Range 15 Terrain Scan Range 16 Terrain Scan Density 10 Armor Coverage 150 Evasion (%) 55 Offensive Hacking 20 Item Schematics ----------------- Grenade Launcher | -9/Materials | Scanalyzed Datajack | -9/Materials | Scanalyzed Imp. Signal Interpreter | -9/Materials | Scanalyzed Rocket Launcher | -9/Materials | Scanalyzed Imp. Sensor Array | -9/Materials | Scanalyzed Lgt. Armor Plating | -9/Materials | Scanalyzed Assault Rifle | -9/Materials | Scanalyzed Targeting Computer | -9/Materials | Scanalyzed Robot Schematics ------------------ None Fabricated ------------ Nothing Repaired ---------- Imp. Sensor Array | 13% | -9/Materials Hvy. Assault Rifle | 17% | -9/Materials Rocket Launcher | 64% | -8/Materials Imp. Aluminum Leg | 6% | -8/Materials Alien Tech Used ----------------- None Achievements -------------- None Challenges ------------ None Game ------ Seed ThunderDirtyShockpuncher Manual? 0 Play Time 00:49:45 Cumulative 17.1 hours Start 2025.06.19 @ 13:38:31 End 2025.06.20 @ 13:55:58 Sessions 3 Manual Loads 0 Difficulty Rogue Special Mode None Game No. 21 Rogue 21 Adventurer 0 Explorer 0 Win Type - Total 0 Types 0/0/0/0/0/0/0/0/0/0 Lore% 18 Gallery% 14 Achievement% 15 Wizard Run 0 Options --------- Layout 1 ASCII 0 Keyboard 0 Movement Mouse Keybinds 0 Fullscreen 1 Font 32/SmallcapsGlow Map View 50x35 Zoom Use 0% Tactical HUD 0 Map Filters NONE Filters NONE Steam 1 RUN: c0f58fe9-0713-4413-b5a0-05742d6f8341